[Event "Live Chess"]
[Site "Chess.com"]
[Date "2024.06.02"]
[Round "-"]
[White "jumush"]
[Black "degringolade64"]
[Result "1/2-1/2"]
[WhiteElo "1736"]
[BlackElo "2069"]
[TimeControl "300"]
[EndTime "8:58:45 PDT"]
[Termination "Game drawn by agreement"]

1. e4 {[%clk 0:04:57.5]} 1... e5 {[%clk 0:04:58.4]} 2. Nc3 {[%clk 0:04:55.1]}
2... Nf6 {[%clk 0:04:56.6]} 3. Bc4 {[%clk 0:04:52.9]} 3... Bc5 {[%clk
0:04:55.8]} 4. f4 {[%clk 0:04:50.2]} 4... exf4 {[%clk 0:04:51.5]} 5. d4 {[%clk
0:04:48.3]} 5... Bb4 {[%clk 0:04:45.7]} 6. Ne2 {[%clk 0:04:45.9]} 6... Nxe4
{[%clk 0:04:35.4]} 7. O-O {[%clk 0:04:43.5]} 7... Bxc3 {[%clk 0:04:26.6]} 8.
bxc3 {[%clk 0:04:39.5]} 8... d5 {[%clk 0:04:24]} 9. Bd3 {[%clk 0:04:34.3]} 9...
g5 {[%clk 0:04:04.1]} 10. c4 {[%clk 0:04:25.6]} 10... c6 {[%clk 0:03:56.6]} 11.
cxd5 {[%clk 0:04:23]} 11... cxd5 {[%clk 0:03:49.9]} 12. c4 {[%clk 0:04:21.2]}
12... O-O {[%clk 0:03:31.2]} 13. cxd5 {[%clk 0:04:18.4]} 13... Qxd5 {[%clk
0:03:29.2]} 14. Qc2 {[%clk 0:04:16.3]} 14... Bf5 {[%clk 0:03:23.1]} 15. Bb2
{[%clk 0:04:12.7]} 15... Nc6 {[%clk 0:03:15.1]} 16. a3 {[%clk 0:04:06.3]} 16...
Rac8 {[%clk 0:03:12.3]} 17. Qc4 {[%clk 0:03:13.5]} 17... Qxc4 {[%clk 0:03:04.4]}
18. Bxc4 {[%clk 0:03:10.5]} 18... Nd2 {[%clk 0:03:02.4]} 19. Rfc1 {[%clk
0:03:06.9]} 19... Nxc4 {[%clk 0:03:00.2]} 20. Rxc4 {[%clk 0:03:04.9]} 20... Bd3
{[%clk 0:02:59.8]} 21. Rc5 {[%clk 0:03:00.4]} 21... Bxe2 {[%clk 0:02:57.3]} 22.
Rxg5+ {[%clk 0:02:58.3]} 22... Kh8 {[%clk 0:02:53]} 23. d5+ {[%clk 0:02:56.7]}
23... f6 {[%clk 0:02:52.6]} 24. Rf5 {[%clk 0:02:54.8]} 24... Ne5 {[%clk
0:02:37.9]} 25. Bxe5 {[%clk 0:02:49.9]} 25... fxe5 {[%clk 0:02:36.7]} 26. Rxe5
{[%clk 0:02:48.7]} 26... Rce8 {[%clk 0:02:33.2]} 27. Rxe8 {[%clk 0:02:42.9]}
27... Rxe8 {[%clk 0:02:31.5]} 28. Re1 {[%clk 0:02:40.5]} 28... Bb5 {[%clk
0:02:30.1]} 29. Rxe8+ {[%clk 0:02:36.1]} 29... Bxe8 {[%clk 0:02:28]} 30. Kf2
{[%clk 0:02:34.2]} 30... Kg7 {[%clk 0:02:19.2]} 31. Kf3 {[%clk 0:02:32]} 31...
Kf6 {[%clk 0:02:18.7]} 32. Kxf4 {[%clk 0:02:30.6]} 32... b5 {[%clk 0:02:13.8]}
33. g4 {[%clk 0:02:28.1]} 33... h6 {[%clk 0:02:11.9]} 34. h4 {[%clk 0:02:26.3]}
34... a5 {[%clk 0:02:11.3]} 35. g5+ {[%clk 0:02:24.1]} 35... hxg5+ {[%clk
0:02:09.2]} 36. hxg5+ {[%clk 0:02:22.8]} 36... Ke7 {[%clk 0:02:05.9]} 37. Ke5
{[%clk 0:02:19.5]} 37... b4 {[%clk 0:02:03.2]} 38. axb4 {[%clk 0:02:16.8]} 38...
a4 {[%clk 0:01:56.2]} 39. Kd4 {[%clk 0:02:14.9]} 39... Kd6 {[%clk 0:01:54.1]}
40. Kc3 {[%clk 0:02:13.4]} 40... Kxd5 {[%clk 0:01:52.6]} 41. Kb2 {[%clk
0:02:09.9]} 41... Kc4 {[%clk 0:01:51.7]} 42. Ka1 {[%clk 0:02:08.5]} 42... Kxb4
{[%clk 0:01:50.8]} 43. Kb1 {[%clk 0:02:07]} 43... a3 {[%clk 0:01:41.8]} 44. Ka1
{[%clk 0:02:05.1]} 44... Bf7 {[%clk 0:01:38.5]} 45. Kb1 {[%clk 0:02:02.3]} 45...
Kc3 {[%clk 0:01:34.2]} 46. g6 {[%clk 0:01:59.7]} 46... Bxg6+ {[%clk 0:01:23.6]}
47. Ka1 {[%clk 0:01:57.7]} 47... Kd2 {[%clk 0:01:18]} 48. Ka2 {[%clk 0:01:54.7]}
48... Bf5 {[%clk 0:01:12.7]} 1/2-1/2

[Event "Live Chess"]
[Site "Chess.com"]
[Date "2024.06.02"]
[Round "-"]
[White "ProfPoisson"]
[Black "gobbles19"]
[Result "0-1"]
[WhiteElo "1352"]
[BlackElo "2248"]
[TimeControl "300"]
[EndTime "8:59:22 PDT"]
[Termination "gobbles19 won by checkmate"]

1. e4 {[%clk 0:04:56.4]} 1... c5 {[%clk 0:04:59.2]} 2. Nc3 {[%clk 0:04:53.7]}
2... e6 {[%clk 0:04:58.8]} 3. f4 {[%clk 0:04:50.4]} 3... g6 {[%clk 0:04:56.8]}
4. Nf3 {[%clk 0:04:48.2]} 4... Bg7 {[%clk 0:04:56.5]} 5. Bc4 {[%clk 0:04:42.5]}
5... Ne7 {[%clk 0:04:54.4]} 6. d3 {[%clk 0:04:41.3]} 6... d5 {[%clk 0:04:53]} 7.
Bb5+ {[%clk 0:04:38]} 7... Bd7 {[%clk 0:04:51.2]} 8. Bxd7+ {[%clk 0:04:36.4]}
8... Nxd7 {[%clk 0:04:51.1]} 9. e5 {[%clk 0:04:34.6]} 9... O-O {[%clk
0:04:48.9]} 10. Nb5 {[%clk 0:04:16.5]} 10... Nf5 {[%clk 0:04:45.2]} 11. g4
{[%clk 0:04:09]} 11... Nh4 {[%clk 0:04:44]} 12. Nd6 {[%clk 0:04:02.3]} 12...
Nxf3+ {[%clk 0:04:39.3]} 13. Qxf3 {[%clk 0:03:59.3]} 13... b6 {[%clk 0:04:29.1]}
14. O-O {[%clk 0:03:56.6]} 14... f6 {[%clk 0:04:23.3]} 15. Qh3 {[%clk
0:03:48.1]} 15... fxe5 {[%clk 0:04:21.6]} 16. fxe5 {[%clk 0:03:46]} 16... Nxe5
{[%clk 0:04:17]} 17. Rxf8+ {[%clk 0:03:40.7]} 17... Qxf8 {[%clk 0:04:16.9]} 18.
Nb5 {[%clk 0:03:21.3]} 18... Nf3+ {[%clk 0:04:15.3]} 19. Kg2 {[%clk 0:03:12]}
19... Nd4 {[%clk 0:04:11.7]} 20. Nxd4 {[%clk 0:03:08.6]} 20... Bxd4 {[%clk
0:04:11.6]} 21. Qg3 {[%clk 0:03:00.6]} 21... Qf6 {[%clk 0:04:10.5]} 22. Bf4
{[%clk 0:02:57.1]} 22... Rf8 {[%clk 0:04:09.4]} 23. Rf1 {[%clk 0:02:54.1]} 23...
e5 {[%clk 0:04:08.4]} 24. g5 {[%clk 0:02:47]} 24... exf4 {[%clk 0:04:06.5]} 25.
gxf6 {[%clk 0:02:44.4]} 25... fxg3 {[%clk 0:04:05.9]} 26. Kxg3 {[%clk
0:02:42.6]} 26... Rxf6 {[%clk 0:04:05.6]} 27. Rxf6 {[%clk 0:02:39.9]} 27... Bxf6
{[%clk 0:04:05.5]} 28. Kf4 {[%clk 0:02:38.2]} 28... Bxb2 {[%clk 0:04:04.7]} 29.
a4 {[%clk 0:02:33]} 29... Kf7 {[%clk 0:04:03.9]} 30. h4 {[%clk 0:02:31.3]} 30...
h6 {[%clk 0:04:03]} 31. Kg4 {[%clk 0:02:28.9]} 31... Ke6 {[%clk 0:04:02.5]} 32.
h5 {[%clk 0:02:26.7]} 32... gxh5+ {[%clk 0:04:00.7]} 33. Kxh5 {[%clk 0:02:25.3]}
33... Ke5 {[%clk 0:04:00.6]} 34. Kxh6 {[%clk 0:02:24.3]} 34... Kd4 {[%clk
0:04:00.5]} 35. Kg6 {[%clk 0:02:23.1]} 35... Kc3 {[%clk 0:04:00.4]} 36. Kf5
{[%clk 0:02:22.1]} 36... Kxc2 {[%clk 0:03:59.9]} 37. Ke6 {[%clk 0:02:19.9]}
37... Kxd3 {[%clk 0:03:59.5]} 38. Kxd5 {[%clk 0:02:18.8]} 38... c4 {[%clk
0:03:59.4]} 39. Kc6 {[%clk 0:02:15.4]} 39... c3 {[%clk 0:03:59.3]} 40. Kb7
{[%clk 0:02:14]} 40... c2 {[%clk 0:03:59.2]} 41. Kxa7 {[%clk 0:02:13]} 41...
c1=Q {[%clk 0:03:58.9]} 42. Kxb6 {[%clk 0:02:12.1]} 42... Bd4+ {[%clk
0:03:56.8]} 43. Ka5 {[%clk 0:02:09.5]} 43... Qc5+ {[%clk 0:03:55.5]} 44. Ka6
{[%clk 0:02:08.2]} 44... Qb6# {[%clk 0:03:55.2]} 0-1

[Event "Live Chess"]
[Site "Chess.com"]
[Date "2024.06.02"]
[Round "-"]
[White "Colm_Buckley"]
[Black "NeilDruggan73"]
[Result "1-0"]
[WhiteElo "1895"]
[BlackElo "1708"]
[TimeControl "300"]
[EndTime "8:59:30 PDT"]
[Termination "Colm_Buckley won on time"]

1. d4 {[%clk 0:04:57.3]} 1... Nf6 {[%clk 0:04:57.3]} 2. c4 {[%clk 0:04:56.7]}
2... g6 {[%clk 0:04:56.3]} 3. Nc3 {[%clk 0:04:56.2]} 3... Bg7 {[%clk 0:04:55.1]}
4. e4 {[%clk 0:04:55.3]} 4... d6 {[%clk 0:04:53.9]} 5. Be2 {[%clk 0:04:54.8]}
5... O-O {[%clk 0:04:52.7]} 6. Nf3 {[%clk 0:04:54.3]} 6... Nc6 {[%clk 0:04:51]}
7. O-O {[%clk 0:04:52.9]} 7... e5 {[%clk 0:04:49.8]} 8. dxe5 {[%clk 0:04:50.8]}
8... dxe5 {[%clk 0:04:41.5]} 9. Be3 {[%clk 0:04:46.1]} 9... Nb4 {[%clk
0:04:36.2]} 10. Bc5 {[%clk 0:04:36.9]} 10... Qxd1 {[%clk 0:03:58.7]} 11. Rfxd1
{[%clk 0:04:22.5]} 11... Nc2 {[%clk 0:03:47.2]} 12. Rac1 {[%clk 0:04:20.1]}
12... Nd4 {[%clk 0:03:43.2]} 13. Bxf8 {[%clk 0:04:15.6]} 13... Nxe2+ {[%clk
0:03:33.3]} 14. Nxe2 {[%clk 0:04:13.5]} 14... Bxf8 {[%clk 0:03:27.4]} 15. Nxe5
{[%clk 0:04:09.9]} 15... Nxe4 {[%clk 0:03:24.8]} 16. f3 {[%clk 0:04:04]} 16...
Bc5+ {[%clk 0:03:21.4]} 17. Kf1 {[%clk 0:04:01.7]} 17... Nf6 {[%clk 0:03:05.9]}
18. Rd8+ {[%clk 0:03:55.9]} 18... Kg7 {[%clk 0:03:04.2]} 19. a3 {[%clk
0:03:42.4]} 19... b6 {[%clk 0:02:58.6]} 20. b4 {[%clk 0:03:37.8]} 20... Bd6
{[%clk 0:02:55.2]} 21. Ng4 {[%clk 0:03:20.3]} 21... Nxg4 {[%clk 0:02:48.5]} 22.
fxg4 {[%clk 0:03:19]} 22... Bb7 {[%clk 0:02:38.9]} 23. Rxa8 {[%clk 0:03:12.6]}
23... Bxa8 {[%clk 0:02:37.5]} 24. h3 {[%clk 0:03:08.1]} 24... Be4 {[%clk
0:02:26]} 25. Kf2 {[%clk 0:03:01.9]} 25... c5 {[%clk 0:02:23.1]} 26. b5 {[%clk
0:02:40.9]} 26... Be5 {[%clk 0:02:14.7]} 27. Ng3 {[%clk 0:02:28.4]} 27... Bd3
{[%clk 0:02:05.2]} 28. a4 {[%clk 0:02:08]} 28... Bb2 {[%clk 0:01:51.3]} 29. Rd1
{[%clk 0:02:00.3]} 29... Bxc4 {[%clk 0:01:46.4]} 30. Rd7 {[%clk 0:01:49.6]}
30... a6 {[%clk 0:01:13.2]} 31. bxa6 {[%clk 0:01:41.9]} 31... Bxa6 {[%clk
0:01:08.1]} 32. Ne4 {[%clk 0:01:36.1]} 32... Be5 {[%clk 0:00:40]} 33. Ke3 {[%clk
0:01:21.6]} 33... Bd4+ {[%clk 0:00:15.9]} 34. Kd2 {[%clk 0:01:17.1]} 34... h5
{[%clk 0:00:06.9]} 35. gxh5 {[%clk 0:01:14.7]} 35... gxh5 {[%clk 0:00:04.9]} 36.
Nd6 {[%clk 0:01:14.2]} 36... Kg6 {[%clk 0:00:00.9]} 37. Nxf7 {[%clk 0:01:08.6]}
1-0

[Event "Live Chess"]
[Site "Chess.com"]
[Date "2024.06.02"]
[Round "-"]
[White "Dashman93"]
[Black "DylanMeyer1"]
[Result "1/2-1/2"]
[WhiteElo "2124"]
[BlackElo "1708"]
[TimeControl "300"]
[EndTime "8:59:36 PDT"]
[Termination "Game drawn by repetition"]

1. a3 {[%clk 0:04:58.3]} 1... d5 {[%clk 0:04:58.6]} 2. c4 {[%clk 0:04:57.3]}
2... dxc4 {[%clk 0:04:57.5]} 3. e4 {[%clk 0:04:56.1]} 3... e6 {[%clk 0:04:57.3]}
4. Bxc4 {[%clk 0:04:54.1]} 4... Ne7 {[%clk 0:04:56]} 5. Nc3 {[%clk 0:04:53]}
5... a6 {[%clk 0:04:49.7]} 6. d4 {[%clk 0:04:51.4]} 6... b5 {[%clk 0:04:48.9]}
7. Ba2 {[%clk 0:04:50.6]} 7... Bb7 {[%clk 0:04:48.8]} 8. Nf3 {[%clk 0:04:49.4]}
8... g6 {[%clk 0:04:42.3]} 9. Bg5 {[%clk 0:04:48]} 9... Bg7 {[%clk 0:04:39.5]}
10. Qd2 {[%clk 0:04:47.5]} 10... h5 {[%clk 0:04:35.8]} 11. Rd1 {[%clk
0:04:45.6]} 11... O-O {[%clk 0:04:31.5]} 12. O-O {[%clk 0:04:44.4]} 12... c6
{[%clk 0:04:27.3]} 13. e5 {[%clk 0:04:42.9]} 13... Qc7 {[%clk 0:04:25.6]} 14.
Ne4 {[%clk 0:04:41.9]} 14... Nf5 {[%clk 0:04:20.1]} 15. h3 {[%clk 0:04:38.3]}
15... Nd7 {[%clk 0:04:10.4]} 16. g4 {[%clk 0:04:36.4]} 16... hxg4 {[%clk
0:04:08.6]} 17. hxg4 {[%clk 0:04:36.3]} 17... Nxd4 {[%clk 0:03:48.7]} 18. Qxd4
{[%clk 0:04:29.7]} 18... c5 {[%clk 0:03:48]} 19. Qe3 {[%clk 0:04:26.9]} 19...
Nxe5 {[%clk 0:03:44.1]} 20. Nxe5 {[%clk 0:04:25.2]} 20... Bxe4 {[%clk
0:03:40.3]} 21. Qxe4 {[%clk 0:04:18.6]} 21... Bxe5 {[%clk 0:03:37.7]} 22. f4
{[%clk 0:04:14.1]} 22... Bxb2 {[%clk 0:03:32.6]} 23. Bf6 {[%clk 0:04:10.2]}
23... Bxf6 {[%clk 0:03:25.5]} 24. Rf3 {[%clk 0:04:07.5]} 24... Kg7 {[%clk
0:03:08.7]} 25. Kg2 {[%clk 0:04:01.7]} 25... Rh8 {[%clk 0:03:06.6]} 26. Rfd3
{[%clk 0:04:00.2]} 26... Rad8 {[%clk 0:03:03.7]} 27. g5 {[%clk 0:03:57.8]} 27...
Bxg5 {[%clk 0:02:54.4]} 28. Rxd8 {[%clk 0:03:52.9]} 28... Bxd8 {[%clk 0:02:52]}
29. Bxe6 {[%clk 0:03:47.6]} 29... fxe6 {[%clk 0:02:36.4]} 30. Qxe6 {[%clk
0:03:47.5]} 30... Qb7+ {[%clk 0:02:04.9]} 31. Kg3 {[%clk 0:03:46.1]} 31... Bh4+
{[%clk 0:02:02]} 32. Kh3 {[%clk 0:03:40.6]} 32... Kh6 {[%clk 0:01:58]} 33. Kxh4
{[%clk 0:03:37.9]} 33... Qf3 {[%clk 0:01:56.3]} 34. Qd7 {[%clk 0:03:23.2]} 34...
Qf2+ {[%clk 0:01:52.8]} 35. Kh3 {[%clk 0:03:22.1]} 35... Qf3+ {[%clk 0:01:52.2]}
36. Kh2 {[%clk 0:03:21.2]} 36... Qf2+ {[%clk 0:01:51.7]} 37. Kh3 {[%clk
0:03:20.6]} 37... Qf3+ {[%clk 0:01:51.1]} 38. Kh2 {[%clk 0:03:20]} 38... Qf2+
{[%clk 0:01:50.5]} 39. Kh3 {[%clk 0:03:19.5]} 1/2-1/2

[Event "Live Chess"]
[Site "Chess.com"]
[Date "2024.06.02"]
[Round "-"]
[White "upoe610"]
[Black "davigator"]
[Result "1-0"]
[WhiteElo "2162"]
[BlackElo "2313"]
[TimeControl "300"]
[EndTime "8:59:39 PDT"]
[Termination "upoe610 won by resignation"]

1. c4 {[%clk 0:04:58]} 1... e5 {[%clk 0:04:58.6]} 2. g3 {[%clk 0:04:56.9]} 2...
Nf6 {[%clk 0:04:57.2]} 3. Bg2 {[%clk 0:04:56.3]} 3... d5 {[%clk 0:04:54.8]} 4.
cxd5 {[%clk 0:04:55.1]} 4... Nxd5 {[%clk 0:04:54.5]} 5. Nf3 {[%clk 0:04:55]}
5... Nc6 {[%clk 0:04:52.4]} 6. O-O {[%clk 0:04:54.1]} 6... Be7 {[%clk
0:04:48.4]} 7. Nc3 {[%clk 0:04:51.6]} 7... Nb6 {[%clk 0:04:46.7]} 8. b3 {[%clk
0:04:50.2]} 8... O-O {[%clk 0:04:45.5]} 9. Bb2 {[%clk 0:04:49.7]} 9... Re8
{[%clk 0:04:44.7]} 10. Rc1 {[%clk 0:04:49.2]} 10... Bg4 {[%clk 0:04:42.4]} 11.
Ne4 {[%clk 0:04:44.1]} 11... Bf8 {[%clk 0:04:39.1]} 12. h3 {[%clk 0:04:41.7]}
12... Bh5 {[%clk 0:04:37.6]} 13. g4 {[%clk 0:04:38.5]} 13... Bg6 {[%clk
0:04:36.6]} 14. Ng3 {[%clk 0:04:37.4]} 14... Qd7 {[%clk 0:04:33.3]} 15. Rxc6
{[%clk 0:04:35.3]} 15... Qxc6 {[%clk 0:04:31.6]} 16. Nxe5 {[%clk 0:04:33.9]}
16... Qb5 {[%clk 0:04:27]} 17. a4 {[%clk 0:04:29.7]} 17... Qa5 {[%clk
0:04:24.4]} 18. Bc3 {[%clk 0:04:27.1]} 18... Qc5 {[%clk 0:04:22.8]} 19. Bxb7
{[%clk 0:04:23.7]} 19... Rxe5 {[%clk 0:04:20.6]} 20. Bxe5 {[%clk 0:04:21.1]}
20... Qxe5 {[%clk 0:04:19.6]} 21. Bxa8 {[%clk 0:04:20.5]} 21... Nxa8 {[%clk
0:04:19]} 22. d4 {[%clk 0:04:17.4]} 22... Qd5 {[%clk 0:04:16.8]} 23. e3 {[%clk
0:04:13.3]} 23... f6 {[%clk 0:04:10.8]} 24. Ne2 {[%clk 0:04:06.2]} 24... Nb6
{[%clk 0:04:06.5]} 25. Nf4 {[%clk 0:03:58.8]} 25... Qd7 {[%clk 0:04:03.6]} 26.
a5 {[%clk 0:03:56]} 26... Nd5 {[%clk 0:04:00.9]} 27. Nxg6 {[%clk 0:03:55.3]}
27... hxg6 {[%clk 0:03:59.9]} 28. Qd3 {[%clk 0:03:54.3]} 28... Kh7 {[%clk
0:03:56.1]} 29. f3 {[%clk 0:03:47.5]} 29... c6 {[%clk 0:03:52.8]} 30. h4 {[%clk
0:03:46.3]} 30... Bb4 {[%clk 0:03:46.3]} 31. h5 {[%clk 0:03:45]} 31... Ne7
{[%clk 0:03:45.6]} 32. Kg2 {[%clk 0:03:41.6]} 32... f5 {[%clk 0:03:42.3]} 33.
hxg6+ {[%clk 0:03:39.8]} 33... Kxg6 {[%clk 0:03:40.8]} 34. Rh1 {[%clk 0:03:34]}
34... Bxa5 {[%clk 0:03:37.8]} 35. Rh5 {[%clk 0:03:32.7]} 35... Bc7 {[%clk
0:03:29.7]} 36. f4 {[%clk 0:03:30.1]} 36... Qd5+ {[%clk 0:03:28]} 37. Kg3 {[%clk
0:03:28.2]} 37... Kf6 {[%clk 0:03:23.6]} 38. gxf5 {[%clk 0:03:14.8]} 38... g6
{[%clk 0:03:22]} 39. e4 {[%clk 0:03:08.6]} 39... Qb5 {[%clk 0:03:20.1]} 40. e5+
{[%clk 0:03:05.8]} 40... Kf7 {[%clk 0:03:19.2]} 41. fxg6+ {[%clk 0:02:58.8]}
41... Nxg6 {[%clk 0:03:14.1]} 42. Qf5+ {[%clk 0:02:57.3]} 42... Kg7 {[%clk
0:03:13]} 43. Qf6+ {[%clk 0:02:55.4]} 43... Kg8 {[%clk 0:03:11.9]} 44. Qxg6+
{[%clk 0:02:54.2]} 1-0